bitfinex/quotes_ETHUSD_20220118
["timestamp","ask_amount","ask_price","bid_price","bid_amount"]
[1642471200968,2.58592288,3224.8,3223.7,6.19375635]
[1642471201167,2.28852288,3224.8,3224.4,1.33756217]
[1642471201372,2.28852288,3224.8,3224.5,1.78562691]
[1642471202372,2.28852288,3224.8,3224.5,2.38562691]
[1642471202615,2.28852288,3224.8,3224.5,2.67382691]
[1642471202816,2.28852288,3224.8,3224.6,1.11025859]
[1642471203424,2.28852288,3224.8,3224.6,2.11025859]
[1642471203624,0.00284212,3224.9,3224.6,1.11025859]
[1642471203823,0.00284212,3224.9,3224.5,0.2882]
[1642471204128,0.00284212,3224.9,3224.4,1.0]
[1642471204323,0.00284212,3224.9,3224.4,3.53272075]
[1642471204522,0.00284212,3224.9,3224.8,1.41068605]
[1642471204724,0.00284212,3224.9,3224.8,2.33658605]
[1642471205123,0.00284212,3224.9,3224.8,3.33658605]
[1642471205322,0.00284212,3224.9,3224.8,2.33658605]
[1642471205522,0.00284212,3224.9,3224.8,4.91284004]
[1642471205722,0.00284212,3224.9,3224.8,3.91284004]
[1642471205922,0.00284212,3224.9,3224.8,3.61284004]
[1642471206122,1.2507071,3225.1,3224.8,3.20215399]
[1642471206575,1.2507071,3225.1,3224.8,0.9259]
[1642471206780,6.68925031,3225.4,3224.7,0.00988611]
[1642471207279,4.3779,3225.4,3224.7,0.00988611]
[1642471207476,0.33432553,3225.3,3224.7,0.00988611]
[1642471207678,0.33432553,3225.3,3225.1,1.15448365]
[1642471208077,0.33432553,3225.3,3225.2,1.77955028]
[1642471208478,0.33432553,3225.3,3225.2,3.10107298]
[1642471208777,0.00227369,3225.3,3225.2,2.3215227]
[1642471208977,0.00227369,3225.3,3225.1,1.42868365]
[1642471209180,0.00227369,3225.3,3225.1,1.15448365]
[1642471209380,0.17188092,3225.2,3225.1,1.15448365]
[1642471209576,0.34205657,3225.2,3225.1,1.15448365]
[1642471210016,0.34205657,3225.2,3224.8,1.48063626]
[1642471210212,0.34205657,3225.2,3224.8,2.48063626]
[1642471210411,0.00113685,3225.1,3224.9,1.76195426]
[1642471210815,0.00113685,3225.1,3224.9,3.06195426]
[1642471211016,0.00113685,3225.1,3225.0,1.8510204]
[1642471211217,0.04908815,3225.2,3225.0,1.8510204]
[1642471211417,0.04908815,3225.2,3225.1,1.2538345]
[1642471211615,0.04908815,3225.2,3225.1,2.2538345]
[1642471211816,0.04908815,3225.2,3225.1,4.33354199]
[1642471212019,0.04908815,3225.2,3225.1,4.11194199]
[1642471212217,0.04908815,3225.2,3225.1,5.11194199]
[1642471212816,0.04908815,3225.2,3225.1,3.3322345]
[1642471213017,0.04908815,3225.2,3225.1,1.3]
[1642471213216,0.04908815,3225.2,3225.0,1.0]
[1642471213417,0.04908815,3225.2,3224.8,1.60463626]
[1642471213418,0.04908815,3225.2,3224.8,0.124]
[1642471213860,0.04908815,3225.2,3224.9,0.00113685]
[1642471214461,6.07900465,3225.7,3224.8,3.1]
[1642471214665,7.9928725,3225.7,3224.8,3.1]
[1642471214863,0.04908815,3225.0,3224.8,3.1]
[1642471216364,2.48864334,3225.4,3224.8,3.1]
[1642471216565,1.0,3225.2,3224.8,3.1]
[1642471216966,1.3,3225.2,3224.8,3.1]
[1642471217613,0.3,3225.2,3224.8,3.1]
[1642471217813,1.0,3225.1,3224.8,3.1]
[1642471218016,1.3,3225.1,3224.8,3.1]
[1642471218615,1.0,3225.1,3224.8,3.1]
[1642471220022,1.0,3225.1,3224.9,0.01067942]
[1642471220622,2.10062348,3225.0,3224.9,0.01067942]
[1642471220823,2.80202348,3225.0,3224.9,0.01067942]
[1642471221021,3.80202348,3225.0,3224.9,0.01067942]
[1642471221462,1.7014,3225.0,3224.9,0.01067942]
[1642471222064,3.65572343,3225.0,3224.8,3.1]
[1642471222266,3.95572343,3225.0,3224.8,3.1]
[1642471222467,1.14915749,3224.5,3224.3,0.00454739]
[1642471222865,1.14915749,3224.5,3223.7,0.00795793]
[1642471224065,2.65572343,3224.4,3223.7,0.00795793]
[1642471224266,2.65572343,3224.4,3223.8,0.124]
[1642471224666,2.65572343,3224.4,3223.9,0.00682109]
[1642471225315,1.0,3224.3,3223.9,0.00682109]
[1642471225721,2.65572343,3224.4,3223.9,0.00682109]
[1642471225921,1.0,3224.3,3223.9,0.00682109]
[1642471226519,0.7048,3224.3,3223.9,0.00682109]
[1642471227122,2.65572343,3224.4,3223.9,0.00682109]
[1642471227322,2.65572343,3224.2,3223.9,0.00682109]
[1642471228221,3.0532,3224.0,3223.9,0.00682109]
[1642471228622,0.7032,3224.0,3223.9,0.00682109]
[1642471229266,2.65572343,3224.2,3223.9,0.00682109]
[1642471229968,2.65572343,3224.2,3223.8,0.00738951]
[1642471229969,0.71148366,3224.0,3223.8,0.00738951]
[1642471230169,0.00828366,3224.0,3223.8,0.00738951]
[1642471230373,2.8532,3223.9,3223.8,0.00738951]
[1642471230568,2.15,3223.9,3223.8,0.00738951]
[1642471230772,2.66400709,3224.0,3222.8,0.124]
[1642471230773,5.75,3223.7,3222.8,0.124]
[1642471230972,5.75,3223.7,3222.5,0.124]
[1642471230973,2.0,3223.6,3222.5,0.124]
[1642471231169,0.5208,3223.1,3222.9,0.00511581]
[1642471231371,4.3532,3223.0,3222.9,0.00511581]
[1642471231570,4.0609,3223.0,3222.9,0.00511581]
[1642471231769,5.15,3222.9,3222.5,0.124]
[1642471231971,0.7138,3222.9,3222.6,0.00170527]
[1642471233230,3.16980909,3223.0,3222.6,0.00170527]
[1642471233430,1.0109,3223.0,3222.6,0.00170527]
[1642471233630,2.08733472,3222.9,3222.6,0.00170527]
[1642471233830,2.65572343,3222.8,3222.6,0.00170527]
[1642471234232,2.1030186,3222.7,3222.6,0.00170527]
[1642471234432,2.65572343,3222.8,3222.6,0.00170527]
[1642471234635,2.16642335,3222.7,3222.6,0.00170527]
[1642471234831,2.65572343,3222.8,3222.6,0.00170527]
[1642471235434,2.65572343,3222.7,3222.6,0.00170527]
[1642471236365,2.65572343,3222.8,3222.6,0.00170527]
[1642471236567,2.95572343,3222.8,3222.6,0.00170527]
[1642471236767,2.65522343,3222.8,3222.6,0.00170527]
[1642471237170,2.20033173,3222.9,3222.6,0.00170527]
[1642471237370,2.50033173,3222.9,3222.6,0.00170527]
[1642471237969,0.71642301,3223.0,3222.6,0.00170527]
[1642471238373,2.21053604,3222.9,3222.6,0.00170527]
[1642471238572,1.01642301,3223.0,3222.6,0.00170527]
[1642471239171,1.01642301,3223.0,3221.3,2.01296871]
[1642471239172,5.8741,3222.9,3221.3,2.01296871]
[1642471239372,5.8741,3222.9,3221.4,0.1241]
[1642471239373,0.4104,3222.5,3221.4,0.1241]
[1642471239570,0.1241,3222.4,3221.4,0.00682108]
[1642471240212,0.4104,3222.3,3221.4,0.00682108]
[1642471240614,0.7104,3222.3,3221.4,0.00682108]
[1642471240814,1.0104,3222.3,3221.4,0.00682108]
[1642471241214,19.1704,3222.3,3221.4,0.00682108]
[1642471241417,1.27076782,3222.2,3221.4,0.00682108]
[1642471241619,0.4104,3221.8,3221.4,0.00682108]
[1642471241816,0.7256,3221.8,3221.4,0.00682108]
[1642471242017,1.0256,3221.8,3221.4,0.00682108]
[1642471242218,1.3256,3221.8,3221.4,0.00682108]
[1642471242517,4.6,3221.5,3219.9,9.0375248]
[1642471242717,0.3763,3221.5,3220.0,6.34853919]
[1642471242918,1.88033428,3221.4,3220.4,0.00568424]
[1642471243118,0.6,3221.4,3220.4,0.00568424]
[1642471243521,0.3,3221.5,3220.4,1.47496047]
[1642471244065,4.68875795,3221.6,3220.5,0.00511581]
[1642471244664,4.68875795,3221.6,3220.5,1.57127894]
[1642471244864,0.00552581,3221.4,3220.5,1.57127894]
[1642471245064,0.00552581,3221.4,3220.6,0.00454739]
[1642471247070,3.79678376,3221.6,3220.9,1.39398328]
[1642471247514,3.79678376,3221.6,3221.0,0.0022737]
[1642471248319,4.09678376,3221.6,3221.0,0.0022737]
[1642471248516,4.09678376,3221.6,3220.8,0.00341054]
[1642471249626,0.1241,3221.5,3220.8,0.00341054]
[1642471250025,0.1241,3221.5,3221.2,0.01039554]
[1642471250226,3.79678376,3221.6,3221.2,0.01039554]
[1642471251022,1.53177205,3221.5,3221.2,0.01039554]
[1642471252069,1.23667205,3221.5,3221.2,0.01039554]
[1642471252867,3.79678376,3221.6,3221.2,0.01039554]
[1642471252868,1.23667205,3221.4,3221.2,0.01039554]
[1642471254068,2.31135031,3221.5,3221.2,0.01039554]
[1642471255119,3.79678376,3221.6,3221.2,0.01039554]
[1642471255320,3.79678376,3221.6,3221.2,1.25667414]
[1642471255519,0.3,3221.6,3221.2,1.25667414]
[1642471255922,25.56125558,3221.7,3221.2,1.25667414]
[1642471256120,2.31135031,3221.3,3221.2,1.25667414]
[1642471256323,2.31135031,3221.3,3220.8,0.00341054]
[1642471256324,2.5,3221.2,3220.8,0.00341054]
[1642471256527,2.5,3221.2,3220.2,0.1241]
[1642471256724,3.7106,3221.2,3220.1,0.1241]
[1642471256924,1.2106,3221.2,3220.1,0.1241]
[1642471257125,0.9176,3221.2,3220.2,1.32797485]
[1642471257324,2.65836851,3221.1,3220.2,1.32797485]
[1642471257525,2.65836851,3221.1,3220.3,0.00625266]
[1642471258771,4.96971882,3221.1,3220.3,0.00625266]
[1642471258963,5.26971882,3221.1,3220.3,0.00625266]
[1642471259364,1.77484301,3221.0,3220.3,0.00625266]
[1642471259564,0.1168,3220.8,3220.3,0.00625266]
[1642471259963,4.43954773,3221.0,3220.1,0.00738951]
[1642471260167,3.08890472,3221.0,3220.1,0.00738951]
[1642471260565,2.65836851,3220.7,3220.1,0.00738951]
[1642471261370,2.65836851,3220.7,3220.1,1.2047742]
[1642471261871,1.5293406,3220.7,3220.1,1.41884141]
[1642471262267,1.2319406,3220.7,3220.1,1.41884141]
[1642471262515,2.65836851,3220.9,3220.1,1.41884141]
[1642471262715,2.65836851,3220.6,3220.1,1.41884141]
[1642471263318,2.65836851,3220.9,3220.1,1.41884141]
[1642471264718,2.65836851,3220.9,3220.2,1.79826732]
[1642471264918,2.65836851,3220.9,3220.2,1.92246732]
[1642471265120,2.65836851,3220.9,3220.5,1.50441182]
[1642471265319,2.65836851,3220.9,3220.6,1.1787379]
[1642471265622,2.65836851,3220.9,3220.7,0.00397897]
[1642471267467,2.35766851,3220.9,3220.7,0.00397897]
[1642471267668,0.0079537,3221.0,3220.7,0.00397897]
[1642471267868,0.0079537,3221.0,3220.7,0.03325769]
[1642471268268,0.0079537,3221.0,3220.8,0.00341054]
[1642471269071,15.001,3220.8,3220.5,1.40196592]
[1642471269470,15.001,3220.8,3220.6,0.00454739]
[1642471270320,15.001,3220.8,3220.5,0.00511581]
[1642471270519,15.001,3220.8,3220.7,0.00397897]
[1642471270719,15.001,3220.8,3220.6,0.00454739]
[1642471270919,15.001,3220.8,3220.4,1.46275982]
[1642471271124,15.001,3220.8,3220.5,0.00511581]
[1642471272625,1.53023633,3220.6,3220.5,0.00511581]
[1642471273525,1.53023633,3220.7,3220.5,1.47312412]
[1642471273782,1.53023633,3220.7,3220.5,0.00511581]
[1642471273974,1.53023633,3220.7,3220.6,0.00454739]
[1642471274174,1.53023633,3220.7,3220.5,0.00511581]
[1642471274777,0.00792327,3220.6,3220.5,0.00511581]
[1642471276587,0.00792327,3220.6,3220.5,1.82499061]
[1642471277185,0.00792327,3220.6,3220.5,1.765373]
[1642471277621,1.2443596,3220.7,3220.5,1.765373]
[1642471278018,1.2443596,3220.7,3220.6,0.00454739]
[1642471278218,7.498,3220.8,3220.6,0.00454739]
[1642471278422,7.498,3220.8,3220.6,0.05243255]
[1642471278820,7.498,3220.8,3220.7,0.00397897]
[1642471279520,7.498,3220.8,3220.6,0.00454739]
[1642471279919,7.498,3220.8,3220.7,0.01018309]
[1642471280322,7.498,3220.8,3220.7,0.01416206]
[1642471282677,7.2069,3220.8,3220.7,0.01416206]
[1642471282875,2.31135031,3221.0,3220.8,0.03783891]
[1642471283076,2.31135031,3221.0,3220.7,0.01416206]
[1642471283276,2.31135031,3221.0,3220.9,0.00284212]
[1642471283477,2.61135031,3221.0,3220.8,0.00341054]
[1642471283676,2.61135031,3221.0,3220.7,0.01018309]
[1642471283677,0.1241,3220.9,3220.7,0.01018309]
[1642471283877,2.43545031,3220.9,3220.7,0.01018309]
[1642471284479,2.06897144,3220.8,3220.7,0.01018309]
[1642471284877,2.06897144,3220.8,3220.7,0.00397897]
[1642471285117,2.36897144,3220.8,3220.7,0.00397897]
[1642471285321,7.208,3220.6,3219.9,0.00852635]
[1642471285519,2.0335148,3220.5,3219.9,0.00852635]
[1642471285721,0.1242,3220.4,3219.9,0.00852635]
[1642471285919,2.1577148,3220.5,3219.9,0.00852635]
[1642471286723,2.31135031,3220.4,3219.9,0.00852635]
[1642471287724,2.01665031,3220.4,3219.9,0.00852635]
[1642471288125,2.65885952,3220.3,3219.9,0.00852635]
[1642471288965,6.22939101,3220.5,3219.9,0.00852635]
[1642471289165,0.1242,3220.4,3219.9,0.00852635]
[1642471289364,4.3218586,3220.5,3219.9,0.00852635]
[1642471289769,2.65885952,3220.4,3219.9,0.00852635]
[1642471289967,2.65885952,3220.4,3220.0,0.01024491]
[1642471290368,2.65885952,3220.4,3220.1,0.00738951]
[1642471290968,6.22657304,3220.5,3220.1,0.00738951]
[1642471291168,6.82657304,3220.5,3220.1,0.00738951]
[1642471291373,6.52657304,3220.5,3220.1,0.00738951]
[1642471291571,6.82657304,3220.5,3220.1,0.00738951]
[1642471291772,2.65885952,3220.3,3220.1,0.00738951]
[1642471291971,2.78305952,3220.3,3220.1,0.00738951]
[1642471292172,3.08305952,3220.3,3220.1,0.00738951]
[1642471292626,2.25,3220.1,3220.0,0.01024491]
[1642471292828,1.3975,3220.3,3220.0,0.01024491]
[1642471293028,0.7242,3220.3,3220.0,0.01024491]
[1642471293428,2.84132196,3220.3,3220.0,0.01024491]
[1642471293629,1.1296,3220.2,3220.0,0.01024491]
[1642471293828,1.53147331,3219.8,3219.2,0.1242]
[1642471294028,1.4429785,3220.1,3219.1,7.42]
[1642471294029,0.26919043,3220.0,3219.1,7.42]
[1642471294230,0.3,3219.8,3219.3,0.00454738]
[1642471294628,0.4242,3219.9,3219.3,0.00454738]
[1642471295229,0.4242,3219.9,3219.2,0.00511581]
[1642471295634,2.65885952,3219.7,3219.2,0.00511581]
[1642471296974,1.53818387,3219.6,3219.2,0.00511581]
[1642471297375,1.83818387,3219.6,3219.2,0.00511581]
[1642471297974,1.83758387,3219.6,3219.2,0.00511581]
[1642471298177,1.53758387,3219.6,3219.2,0.00511581]
[1642471298475,1.58510941,3219.6,3218.7,0.00795793]
[1642471298675,2.65885952,3219.5,3218.7,0.00795793]
[1642471299679,2.05755894,3219.4,3218.7,0.00795793]
[1642471301329,2.05755894,3219.4,3218.5,0.00909477]
[1642471301330,0.1168,3219.1,3218.5,0.00909477]
[1642471301521,0.1242,3219.0,3218.4,7.45329477]
[1642471301722,0.1242,3219.0,3218.4,0.1242]
[1642471301723,3.1,3218.9,3218.4,0.1242]
[1642471302120,3.4,3218.9,3218.4,0.1242]
[1642471302319,0.3,3218.9,3218.4,0.1242]
[1642471302520,0.12704212,3219.0,3218.4,0.1242]
[1642471302822,0.00227369,3218.9,3218.4,0.1242]
[1642471303224,2.35696479,3218.8,3218.4,0.1242]
[1642471303422,2.35696479,3218.8,3218.1,7.42]
[1642471303625,0.00113684,3218.7,3218.1,7.42]
[1642471303868,0.00113684,3218.7,3218.3,0.00113685]
[1642471305669,0.13946259,3218.7,3218.3,0.00113685]
[1642471306676,0.27778834,3218.7,3218.3,0.00113685]
[1642471307518,1.81334404,3218.7,3218.3,0.00113685]
[1642471307718,1.86086958,3218.7,3218.3,0.00113685]
[1642471308319,1.56576958,3218.7,3218.3,0.00113685]
[1642471308519,0.04752554,3218.7,3218.3,0.00227369]
[1642471308719,0.09505108,3218.7,3218.3,0.00227369]
[1642471309322,0.09505108,3218.7,3218.4,0.02521416]
[1642471309523,0.09505108,3218.7,3218.3,0.00227369]
[1642471309724,0.23337683,3218.7,3218.5,0.00113684]
[1642471309922,0.23337683,3218.7,3218.3,0.00227369]
[1642471310524,0.23562455,3218.7,3218.3,0.00227369]
[1642471310724,0.34884199,3218.6,3218.3,0.00227369]
[1642471312584,0.35108971,3218.6,3218.3,0.00227369]
[1642471312785,0.39861525,3218.6,3218.3,0.02558702]
[1642471312986,0.39861525,3218.6,3218.3,0.00227369]
[1642471313185,0.39861525,3218.6,3218.4,0.00170527]
[1642471313385,0.40591525,3218.6,3218.3,0.00227369]
[1642471313587,0.40086297,3218.6,3218.3,0.00227369]
[1642471313785,0.53918872,3218.6,3218.3,0.00227369]
[1642471314584,0.54143644,3218.6,3218.3,0.00227369]
[1642471314785,0.00520882,3218.5,3218.3,0.00227369]
[1642471316326,0.05505965,3218.5,3218.3,0.00227369]
[1642471316830,0.10483291,3218.5,3218.3,0.00227369]
[1642471317027,0.10483291,3218.5,3218.3,0.03315637]
[1642471317328,0.15468374,3218.5,3218.4,0.00170527]
[1642471317730,0.15468374,3218.5,3218.3,0.00227369]
[1642471317732,0.15693146,3218.5,3218.3,0.00227369]
[1642471317932,0.204457,3218.5,3218.3,0.04513135]
[1642471318231,0.25430783,3218.5,3218.4,1.12109977]
[1642471318432,0.25430783,3218.5,3218.4,1.24529977]
[1642471318630,0.47904763,3218.6,3218.4,1.24529977]
[1642471318872,0.47904763,3218.6,3218.5,0.1242]
[1642471319072,0.47904763,3218.6,3218.5,0.12533684]
[1642471319274,0.52889846,3218.6,3218.5,0.12533684]
[1642471320074,0.52889846,3218.6,3218.5,0.00113684]
[1642471320275,0.57874929,3218.6,3218.5,0.00113684]
[1642471320478,0.57874929,3218.6,3218.4,0.00170527]
[1642471321079,0.57874929,3218.6,3218.4,1.26588985]
[1642471321281,0.57874929,3218.6,3218.4,1.26418458]
[1642471321482,0.62860012,3218.6,3218.5,0.00113684]
[1642471322520,0.67845095,3218.6,3218.5,0.00113684]
[1642471323526,0.72830178,3218.6,3218.5,0.00113684]
[1642471323823,0.43360178,3218.6,3218.5,1.7396469]
[1642471324026,3.09591347,3218.6,3218.5,1.7396469]
[1642471324228,3.14343901,3218.6,3218.5,1.7396469]
[1642471324424,3.19328984,3218.6,3218.5,1.7396469]
[1642471324826,3.19328984,3218.6,3218.5,1.73804979]
[1642471325027,3.19328984,3218.6,3218.5,0.00113684]
[1642471325226,3.2430631,3218.6,3218.5,0.00113684]
[1642471325428,3.29291393,3218.6,3218.4,0.00170527]
[1642471326126,3.29516165,3218.6,3218.4,1.34373434]
[1642471326381,3.4334874,3218.6,3218.4,1.34373434]
[1642471326583,3.48333823,3218.6,3218.5,1.73778036]
[1642471327183,0.82552198,3218.6,3218.5,0.00113684]
[1642471327381,0.96384773,3218.6,3218.5,0.00113684]
[1642471327580,1.01369856,3218.6,3218.5,0.00113684]
[1642471328281,1.01594628,3218.6,3218.5,0.00113684]
[1642471328480,1.06347182,3218.6,3218.5,0.00113684]
[1642471328681,1.11332265,3218.6,3218.5,0.00113684]
[1642471328881,0.81482265,3218.6,3218.5,0.00113684]
[1642471329283,0.81707037,3218.6,3218.5,0.00113684]
[1642471329482,0.86459591,3218.6,3218.5,0.00113684]
[1642471329685,0.91444674,3218.6,3218.5,0.00113684]
[1642471330323,0.91444674,3218.6,3218.3,0.1242]
[1642471330324,0.91669446,3218.6,3218.4,0.00170527]
[1642471330528,1.05277249,3218.6,3218.4,0.00170527]
[1642471330931,1.05277249,3218.6,3218.3,0.00227369]
[1642471331532,1.19109824,3218.6,3218.3,0.00227369]
[1642471331832,1.14124741,3218.6,3218.3,0.00227369]
[1642471332634,1.27957316,3218.6,3218.3,0.00227369]
[1642471333433,1.28182088,3218.6,3218.3,0.00227369]
[1642471333634,1.27957316,3218.6,3218.3,0.00227369]
[1642471334078,0.98147316,3218.6,3218.3,0.00227369]
[1642471334475,0.98372088,3218.6,3218.3,0.00227369]
[1642471334677,0.98147316,3218.6,3218.3,0.00227369]
[1642471335678,0.98372088,3218.6,3218.3,0.00227369]
[1642471336582,2.52098838,3218.6,3218.3,0.00227369]
[1642471336781,2.51874066,3218.6,3218.3,0.00227369]
[1642471336980,2.56859149,3218.6,3218.3,0.00227369]
[1642471337383,1.53501978,3218.5,3218.3,0.00227369]
[1642471338627,1.65921978,3218.5,3218.3,0.00227369]
[1642471338826,1.6614675,3218.5,3218.3,0.00227369]
[1642471339225,0.12644772,3218.5,3218.3,0.00227369]
[1642471339831,0.12869544,3218.5,3218.3,0.00227369]
[1642471340031,0.12869544,3218.5,3217.7,9.1808957]
[1642471340229,0.00449544,3218.5,3217.7,9.1808957]
[1642471340431,0.00449544,3218.5,3217.8,0.00284212]
[1642471340632,0.00449544,3218.5,3217.8,1.76828554]
[1642471340830,0.00449544,3218.5,3217.8,2.76603782]
[1642471341031,0.00449544,3218.5,3217.9,0.00227369]
[1642471341283,0.00281614,3218.4,3218.0,0.1242]
[1642471341677,0.00224772,3218.3,3218.0,0.1242]
[1642471342078,0.0016793,3218.2,3218.0,0.1242]
[1642471342481,0.00111087,3218.1,3218.0,0.1242]
[1642471343584,0.04863641,3218.1,3218.0,0.1242]
[1642471344482,2.45095222,3218.1,3218.0,0.1242]
[1642471344882,2.45703191,3218.1,3218.0,0.1242]
[1642471345530,0.10113077,3218.1,3218.0,0.1242]
[1642471345731,0.10113077,3218.1,3217.9,0.00227369]
[1642471346131,0.10113077,3218.1,3217.9,0.00113684]
[1642471346539,0.14865631,3218.1,3217.9,0.00113684]
[1642471347437,0.14865631,3218.1,3217.8,0.00170527]
[1642471347738,0.28698206,3218.1,3217.8,1.81395207]
[1642471348138,0.28698206,3218.1,3217.9,0.00113684]
[1642471348783,0.3345076,3218.1,3217.9,0.00113684]
[1642471349477,0.3345076,3218.1,3218.0,0.1242]
[1642471349677,0.3345076,3218.1,3217.9,0.12533684]
[1642471349678,0.17353335,3218.1,3217.9,0.12533684]
[1642471350078,0.00780956,3218.0,3217.9,0.12533684]
[1642471350279,0.00780956,3218.0,3217.9,1.90902478]
[1642471350479,0.00780956,3218.0,3217.9,2.90902478]
[1642471350678,0.00780956,3218.0,3217.9,1.90902478]
[1642471350878,0.14613531,3218.0,3217.9,1.78482478]
[1642471351079,0.14613531,3218.0,3217.9,1.90902478]
[1642471351881,0.19366085,3218.0,3217.9,1.90902478]
[1642471352281,0.19366085,3218.0,3217.9,1.78482478]
[1642471352932,0.3319866,3218.0,3217.9,1.78482478]
[1642471353834,0.45221605,3218.0,3217.9,1.78482478]
[1642471354734,0.15741605,3218.0,3217.9,1.78482478]
[1642471354934,0.2957418,3218.0,3217.9,1.79478887]
[1642471356040,0.34326734,3218.0,3217.9,1.79478887]
[1642471356486,0.34326734,3218.0,3217.9,0.01110093]
[1642471357086,0.39079288,3218.0,3217.9,0.01110093]
[1642471358087,0.43831842,3218.0,3217.9,0.01110093]
[1642471359188,0.57664417,3218.0,3217.9,0.01110093]
[1642471359790,0.28624417,3218.0,3217.9,0.00113684]
[1642471360028,0.42456992,3218.0,3217.9,0.00113684]
[1642471361031,0.42456992,3218.0,3217.5,3.13919466]
[1642471361229,0.56289567,3218.0,3217.5,3.13919466]
[1642471361432,0.56289567,3218.0,3217.6,0.00170527]
[1642471362037,0.56289567,3218.0,3217.5,3.13865221]
[1642471362233,0.00170527,3217.9,3217.4,3.3281794]
[1642471362434,0.00170527,3217.9,3217.5,1.0]
[1642471362633,0.00113684,3217.8,3217.6,1.69301336]
[1642471362835,0.00113684,3217.8,3217.6,1.74536896]
[1642471364781,0.27443251,3218.0,3217.6,1.74536896]
[1642471364983,0.01834429,3217.7,3217.6,1.74536896]
[1642471365381,0.01834429,3217.7,3217.6,1.7465058]
[1642471367185,2.67879287,3217.7,3217.6,1.7465058]
[1642471369729,2.38849287,3217.7,3217.6,1.7465058]
[1642471370135,2.40685236,3217.7,3217.6,1.60818005]
[1642471373093,2.40685236,3217.7,3217.6,0.00113684]
[1642471373494,2.40685236,3217.7,3217.5,0.00170527]
[1642471374197,2.40685236,3217.7,3217.5,1.00170527]
[1642471374393,2.40685236,3217.7,3217.6,1.73652694]
[1642471374793,0.01835949,3217.7,3217.6,1.73652694]
[1642471375026,0.16902535,3218.1,3217.6,1.74492316]
[1642471375429,0.00113685,3218.0,3217.6,1.74492316]
[1642471375630,0.00113685,3218.0,3217.6,0.00839622]
[1642471376631,0.00113685,3218.0,3217.6,1.75771871]
[1642471377033,0.00113685,3218.0,3217.6,1.76311895]
[1642471377231,0.00113685,3218.0,3217.6,0.00839622]
[1642471379280,0.00113685,3218.0,3217.6,1.75240101]
[1642471379879,0.00113685,3218.0,3217.6,1.86820479]
[1642471380078,1.4120353,3218.3,3217.6,1.86820479]
[1642471380277,1.4120353,3218.3,3217.7,0.00170527]
[1642471380478,0.00113685,3218.2,3217.7,0.00170527]
[1642471381382,0.00113685,3218.2,3217.6,0.00227369]
[1642471382183,0.00113685,3218.2,3217.5,1.08393279]
[1642471382382,0.00284211,3218.1,3217.5,1.08393279]
[1642471382828,0.00227369,3218.0,3217.5,1.08393279]
[1642471383028,0.00227369,3218.0,3217.5,1.55372297]
[1642471383229,0.00170527,3217.9,3217.5,1.55372297]
[1642471383631,0.00113684,3217.8,3217.5,1.55372297]
[1642471384029,0.00397896,3218.3,3217.5,1.55372297]
[1642471384233,0.00397896,3218.3,3217.5,0.98168507]
[1642471384431,0.00341054,3218.2,3217.4,4.54173957]
[1642471384830,0.00284211,3218.1,3217.4,4.54173957]
[1642471385031,0.1242,3218.0,3217.6,0.00877477]
[1642471385231,0.1243,3218.3,3217.6,0.00877477]
[1642471385431,0.1243,3218.3,3217.7,0.00170527]
[1642471385631,0.12600527,3218.3,3217.7,0.00170527]
[1642471387483,2.43282147,3218.3,3217.7,0.00170527]
[1642471388683,2.3068162,3218.2,3217.7,0.00170527]
[1642471389684,1.54731156,3218.1,3217.7,0.00170527]
[1642471389885,1.54731156,3218.1,3217.9,0.00876738]
[1642471390330,1.25291156,3218.1,3217.9,0.00876738]
[1642471390530,2.66080289,3218.0,3217.9,0.00876738]
[1642471391128,2.66080289,3218.0,3217.5,1.92976938]
[1642471391335,2.66250816,3218.0,3217.5,1.92976938]
[1642471391532,0.00113685,3217.9,3217.5,1.92976938]
[1642471394978,0.00587743,3217.9,3217.5,1.92976938]
[1642471395381,2.37388032,3218.3,3217.6,0.1242]
[1642471395581,2.37388032,3218.3,3217.6,0.12590527]
[1642471395781,0.00170527,3218.2,3217.6,0.12590527]
[1642471396180,2.37388032,3218.3,3217.6,0.12590527]
[1642471396181,0.00113684,3218.1,3217.6,0.12590527]
[1642471399634,1.55182275,3218.1,3217.6,0.12590527]
[1642471399834,1.55735433,3218.1,3217.6,0.12590527]
[1642471400434,1.26465433,3218.1,3217.6,0.12590527]
[1642471400636,1.26465433,3218.1,3217.7,0.00227369]
[1642471401038,3.37728989,3218.4,3217.7,0.00227369]
[1642471401291,2.3068162,3218.2,3217.7,0.00227369]
[1642471401684,2.3068162,3218.2,3217.6,0.00284211]
[1642471401884,2.3068162,3218.2,3217.7,0.1242]
[1642471402287,2.3068162,3218.2,3217.8,0.00170527]
[1642471402885,2.3068162,3218.2,3217.7,0.00227369]
[1642471403284,2.3068162,3218.2,3217.6,1.82807235]
[1642471403484,0.00227369,3218.1,3217.6,0.07662286]
[1642471403885,0.00170527,3218.0,3217.6,0.07662286]
[1642471404084,0.00170527,3218.0,3217.6,0.07437514]
[1642471404285,0.00113685,3217.9,3217.6,0.07437514]
[1642471404685,0.00227369,3218.1,3217.6,0.07437514]
[1642471404886,0.00227369,3218.1,3217.8,0.0088942]
[1642471405135,0.00170527,3218.0,3217.8,0.0088942]
[1642471405534,2.01295305,3218.2,3217.8,0.0088942]
[1642471405935,0.00113684,3218.1,3217.8,0.0088942]
[1642471407137,0.12533684,3218.1,3217.8,0.0088942]
[1642471408882,3.16337445,3218.1,3217.8,0.0088942]
[1642471410087,3.03803761,3217.9,3217.8,0.0088942]
[1642471410284,3.16223761,3217.9,3217.8,0.0088942]
[1642471410687,2.86423761,3217.9,3217.8,0.0088942]
[1642471411085,0.1242,3217.9,3217.8,0.0088942]
[1642471411286,0.1242,3218.0,3217.8,0.0088942]
[1642471411888,0.1242,3218.0,3217.3,1.6284881]
[1642471412088,0.1242,3218.0,3217.3,1.5784881]
[1642471412288,0.0175248,3217.7,3217.4,0.00284212]
[1642471414935,0.02209609,3217.7,3217.4,0.00284212]
[1642471415737,1.38983335,3218.1,3217.4,0.00284212]
[1642471415935,0.09529,3218.0,3217.4,0.00284212]
[1642471416137,2.66131197,3217.6,3217.4,0.00397896]
[1642471417087,1.38983335,3218.0,3217.4,0.00397896]
[1642471417785,2.66131197,3217.5,3217.4,0.00397896]
[1642471418585,1.38983335,3218.0,3217.4,0.00397896]
[1642471420531,1.33983335,3218.0,3217.4,0.00397896]
[1642471420731,1.04903335,3218.0,3217.4,0.00397896]
[1642471421339,2.66131197,3217.9,3217.4,0.00397896]
[1642471422037,3.71034532,3218.0,3217.4,0.00397896]
[1642471422638,2.66131197,3217.8,3217.4,0.00397896]
[1642471423237,2.66131197,3217.9,3217.4,0.00397896]
[1642471423440,0.1242,3217.8,3217.4,0.00397896]
[1642471423882,0.3,3217.7,3217.3,1.5784881]
[1642471424082,2.66301724,3217.7,3217.3,1.5784881]